fUSD/lending_fUSD_20260418
["ID","MTS","AMOUNT","RATE_DAILY","PERIOD"]
[420666312,1776450646642,-500.0,0.0001197,2]
[420666313,1776450646651,-37212.0,0.00011973,2]
[420666314,1776450646661,-500.0,0.00011973,2]
[420666315,1776450646671,-150.0,0.00011973,2]
[420666316,1776450646681,-200.0,0.00011978,2]
[420666317,1776450646691,-200.0,0.00011978,2]
[420666318,1776450646700,-200.0,0.00011978,2]
[420666319,1776450646711,-150.01,0.00011988,2]
[420666320,1776450646721,-150.0,0.00011988,2]
[420666321,1776450646730,-150.0,0.00011988,2]
[420666322,1776450646740,-243.62,0.00011988,2]
[420666323,1776450646749,-908.33726995,0.0001199,2]
[420666324,1776450646758,-908.33726995,0.0001199,2]
[420666325,1776450646767,-174.67353777,0.00011997,2]
[420666326,1776450646777,-300.0,0.00011999,2]
[420666328,1776450646786,-300.0,0.00011999,2]
[420666330,1776450646795,-300.0,0.00011999,2]
[420666332,1776450646804,-150.0,0.00011999,2]
[420666334,1776450646814,-1190.0,0.00012,5]
[420666336,1776450646824,-654303.40045933,0.00012,2]
[420666346,1776450647100,-346.4546635,9.849e-05,2]
[420666349,1776450647111,-1004.8843365,9.849e-05,2]
[420666351,1776450647121,-76125.11566351,0.00012,2]
[420666355,1776450647155,-665.86939559,0.00012,2]
[420666365,1776450647236,-192366.42954731,0.00012,2]
[420666367,1776450647247,-22295.84854234,0.00012,2]
[420666370,1776450647263,-154174.0,0.00012,2]
[420666373,1776450647281,-4840.85945635,0.00012,2]
[420666393,1776450647661,-3057.33182765,7.459e-05,2]
[420666394,1776450647689,-4944.98091591,7.459e-05,2]
[420666395,1776450647699,-3184.57664005,0.000119,2]
[420666396,1776450647709,-15039.14244404,0.00012,2]
[420666397,1776450647720,-645.75968916,0.00012,2]
[420666398,1776450647731,-4930.54698951,0.00012,2]
[420666399,1776450647756,-3664.84883092,0.00012,2]
[420666411,1776451289341,2881.644,7.212e-05,2]
[420666412,1776451289375,181.752,7.212e-05,2]
[420666414,1776451348532,-300.0,7.356e-05,2]
[420666415,1776451348560,-300.0,7.356e-05,2]
[420666416,1776451348590,-247.0,7.356e-05,2]
[420666417,1776451348619,-250.0,7.356e-05,2]
[420666418,1776451348648,-2806.01,7.356e-05,2]
[420666419,1776451348929,-2193.99,7.356e-05,2]
[420666420,1776451348958,-250.0,7.357e-05,2]
[420666421,1776451348988,-1200.0,7.357e-05,2]
[420666422,1776451349017,-150.0,7.357e-05,2]
[420666423,1776451350521,-5000.0,7.357e-05,2]
[420666424,1776451353999,-5000.0,7.357e-05,2]
[420666425,1776451358103,-5000.0,7.357e-05,2]
[420666430,1776451762078,-300.0,7.257e-05,2]
[420666431,1776451762108,-246.0,7.257e-05,2]
[420666432,1776451762136,-3908.01,7.257e-05,2]
[420666433,1776451762302,-1091.99,7.257e-05,2]
[420666434,1776451779063,-325.69229972,7.258e-05,2]
[420666435,1776451779094,-500.0,7.258e-05,2]
[420666436,1776451779127,-429.00642637,7.258e-05,2]
[420666437,1776451779156,-197.7424774,7.258e-05,2]
[420666438,1776451779187,-500.0,7.258e-05,2]
[420666439,1776451779216,-500.0,7.258e-05,2]
[420666440,1776451779245,-500.0,7.258e-05,2]
[420666441,1776451779273,-498.8207918,7.258e-05,2]
[420666442,1776451779301,-321.75962024,7.258e-05,2]
[420666443,1776451779329,-319.7431048,7.258e-05,2]
[420666444,1776451779357,-293.0501172,7.258e-05,2]
[420666445,1776451779385,-157.6411512,7.258e-05,2]
[420666446,1776451779418,-413.09802254,7.258e-05,2]
[420666447,1776451779494,-86.90197746,7.258e-05,2]
[420666448,1776451779529,-500.0,7.258e-05,2]
[420666449,1776451779569,-500.0,7.258e-05,2]
[420666450,1776451779612,-500.0,7.258e-05,2]
[420666451,1776451779649,-500.0,7.258e-05,2]
[420666452,1776451779689,-500.0,7.258e-05,2]
[420666453,1776451779726,-500.0,7.258e-05,2]
[420666454,1776451779760,-500.0,7.258e-05,2]
[420666455,1776451779796,-500.0,7.258e-05,2]
[420666456,1776451779832,-500.0,7.258e-05,2]
[420666457,1776451779867,-326.20604508,7.258e-05,2]
[420666458,1776451779908,-173.79395492,7.258e-05,2]
[420666459,1776451779946,-500.0,7.258e-05,2]
[420666460,1776451779983,-500.0,7.258e-05,2]
[420666461,1776451780017,-500.0,7.258e-05,2]
[420666462,1776451780051,-500.0,7.258e-05,2]
[420666463,1776451780083,-500.0,7.258e-05,2]
[420666464,1776451780115,-500.0,7.258e-05,2]
[420666465,1776451780148,-569.52638172,7.258e-05,2]
[420666466,1776451780182,-500.0,7.258e-05,2]
[420666467,1776451780215,-500.0,7.258e-05,2]
[420666468,1776451780249,-13.36932672,7.258e-05,2]
[420666469,1776451780309,-486.63067328,7.258e-05,2]
[420666470,1776451780343,-500.0,7.258e-05,2]
[420666471,1776451780378,-500.0,7.258e-05,2]
[420666472,1776451780414,-500.0,7.258e-05,2]
[420666473,1776451780448,-500.0,7.258e-05,2]
[420666474,1776451780482,-500.0,7.258e-05,2]
[420666475,1776451780515,-500.0,7.258e-05,2]
[420666476,1776451780551,-500.0,7.258e-05,2]
[420666477,1776451780585,-500.0,7.258e-05,2]
[420666478,1776451780618,-500.0,7.258e-05,2]
[420666479,1776451780681,-500.0,7.258e-05,2]
[420666480,1776451780716,-500.0,7.258e-05,2]
[420666481,1776451780751,-500.0,7.258e-05,2]
[420666482,1776451780784,-500.0,7.258e-05,2]
[420666483,1776451780818,-500.0,7.258e-05,2]
[420666484,1776451780853,-500.0,7.258e-05,2]
[420666485,1776451780889,-724.1535106,7.258e-05,2]
[420666486,1776451780923,-724.1535106,7.258e-05,2]
[420666487,1776451780957,-379.242447,7.258e-05,2]
[420666488,1776451781004,-344.9110636,7.258e-05,2]
[420666489,1776451781038,-724.1535106,7.258e-05,2]
[420666490,1776451781073,-724.1535106,7.258e-05,2]
[420666491,1776451781107,-724.1535106,7.258e-05,2]
[420666492,1776451781141,-724.1535106,7.258e-05,2]
[420666493,1776451781174,-724.1535106,7.258e-05,2]
[420666494,1776451781209,-724.1535106,7.258e-05,2]
[420666495,1776451781262,-724.1535106,7.258e-05,2]
[420666496,1776451781296,-724.1535106,7.258e-05,2]
[420666497,1776451781330,-724.1535106,7.258e-05,2]
[420666498,1776451781364,-724.1535106,7.258e-05,2]
[420666499,1776451781398,-724.1535106,7.258e-05,2]
[420666500,1776451781430,-724.1535106,7.258e-05,2]
[420666501,1776451781465,-586.0143622,7.258e-05,2]
[420666502,1776451781507,-138.1391484,7.258e-05,2]
[420666503,1776451781541,-724.1535106,7.258e-05,2]
[420666504,1776451781576,-724.1535106,7.258e-05,2]
[420666505,1776451781611,-724.1535106,7.258e-05,2]
[420666506,1776451781645,-724.1535106,7.258e-05,2]
[420666507,1776451781681,-724.1535106,7.258e-05,2]
[420666508,1776451781715,-724.1535106,7.258e-05,2]
[420666509,1776451781749,-309.7360654,7.258e-05,2]
[420666510,1776451783891,-414.4174452,7.258e-05,2]
[420666511,1776451783929,-724.1535106,7.258e-05,2]
[420666512,1776451783967,-724.1535106,7.258e-05,2]
[420666513,1776451784001,-724.1535106,7.258e-05,2]
[420666514,1776451784034,-724.1535106,7.258e-05,2]
[420666515,1776451784070,-724.1535106,7.258e-05,2]
[420666516,1776451784105,-724.1535106,7.258e-05,2]
[420666517,1776451784244,-724.1535106,7.258e-05,2]
[420666518,1776451784280,-724.1535106,7.258e-05,2]
[420666519,1776451784314,-724.1535106,7.258e-05,2]
[420666520,1776451784349,-724.1535106,7.258e-05,2]
[420666521,1776451784383,-724.1535106,7.258e-05,2]
[420666522,1776451784419,-724.1535106,7.258e-05,2]
[420666523,1776451784455,-586.0143622,7.258e-05,2]
[420666524,1776451805427,-300.0,7.257e-05,2]
[420666525,1776451805456,-1200.0,7.257e-05,2]
[420666526,1776451805491,-138.1391484,7.258e-05,2]
[420666527,1776451805527,-724.1535106,7.258e-05,2]
[420666528,1776451805562,-724.1535106,7.258e-05,2]
[420666529,1776451805596,-700.6185215,7.258e-05,2]
[420666530,1776451805631,-700.6185215,7.258e-05,2]
[420666531,1776451805665,-324.0250533,7.258e-05,2]
[420666532,1776451805880,-376.5934682,7.258e-05,2]
[420666533,1776451805914,-700.6185215,7.258e-05,2]
[420666534,1776451805948,-700.6185215,7.258e-05,2]
[420666535,1776451805982,-700.6185215,7.258e-05,2]
[420666536,1776451806017,-700.6185215,7.258e-05,2]
[420666537,1776451806053,-700.6185215,7.258e-05,2]
[420666538,1776451806086,-700.6185215,7.258e-05,2]
[420666539,1776451806119,-138.7822841,7.258e-05,2]
[420666540,1776451806196,-561.8362374,7.258e-05,2]
[420666541,1776451806229,-700.6185215,7.258e-05,2]
[420666542,1776451806263,-700.6185215,7.258e-05,2]
[420666543,1776451806298,-700.6185215,7.258e-05,2]
[420666544,1776451806333,-700.6185215,7.258e-05,2]
[420666545,1776451806368,-700.6185215,7.258e-05,2]
[420666546,1776451806403,-700.6185215,7.258e-05,2]
[420666547,1776451806432,-150.0,7.258e-05,2]
[420666548,1776451806991,-150.0,7.258e-05,2]
[420666549,1776451807007,-150.0,7.258e-05,2]
[420666550,1776451807016,-18.9152672,7.258e-05,2]
[420666551,1776451808376,-4981.0847328,7.258e-05,2]
[420666552,1776451808411,-37.8405344,7.258e-05,2]
[420666553,1776451811664,-4494.32349249,7.258e-05,2]
[420666554,1776451811695,-155.0,7.258e-05,3]
[420666555,1776451811790,-701.36301502,7.258e-05,2]
[420666556,1776451811830,-4171.37436434,7.258e-05,2]
[420666557,1776451811866,-250.0,7.258e-05,2]
[420666561,1776451831518,-1110.61079819,7.259e-05,2]
[420666562,1776451831530,-1346.55708434,7.259e-05,2]
[420666563,1776451831748,500.0,7.258e-05,2]
[420666564,1776451831851,-620.42829203,7.259e-05,2]
[420666565,1776451831864,-59184.18912182,7.259e-05,2]
[420666566,1776451831876,-125086.48695929,7.259e-05,2]
[420666567,1776451831890,-110837.68278439,7.259e-05,2]
[420666568,1776451831901,-58089.55453045,7.259e-05,2]
[420666569,1776451831913,-402.11590291,7.259e-05,2]
[420666571,1776451832027,202.93354449,7.258e-05,2]
[420666577,1776451837704,-1250.51494751,7.259e-05,2]
[420666578,1776451837716,-1650.61375639,7.259e-05,2]
[420666583,1776451839725,-1852.927,7.259e-05,2]
[420666584,1776451839754,-395.98499995,7.259e-05,2]
[420666585,1776451839765,-2193.9605744,7.259e-05,2]
[420666586,1776451839782,-764.8018764,7.259e-05,2]
[420666587,1776451839796,-323.93120713,7.259e-05,2]
[420666588,1776451839831,-17775.76747733,7.259e-05,2]
[420666589,1776451839842,-993.3784,7.259e-05,2]
[420666590,1776451839942,-94355.11368747,7.259e-05,2]
[420666591,1776451839952,-246.0,7.259e-05,2]
[420666592,1776451839961,-3057.33182765,7.317e-05,2]
[420666593,1776451839970,-250.0,7.317e-05,2]
[420666594,1776451839979,-151.0,7.356e-05,2]
[420666595,1776451839988,-11890.92093157,7.358e-05,2]
[420666596,1776451839997,-656.47,7.358e-05,2]
[420666597,1776451840006,-2000.0,7.447e-05,2]
[420666598,1776451840015,-656.47,7.632e-05,2]
[420666599,1776451840025,-150.0,7.656e-05,2]
[420666600,1776451840034,-656.47,7.906e-05,2]
[420666601,1776451840043,-5000.0,7.983e-05,2]
[420666602,1776451840053,-1680.0,7.983e-05,2]
[420666603,1776451840062,-5000.0,7.984e-05,2]
[420666604,1776451840072,-250.0,7.984e-05,2]
[420666605,1776451840081,-255.0,7.984e-05,2]
[420666606,1776451840090,-420.0,7.984e-05,2]
[420666607,1776451840099,-200.0,8e-05,2]
[420666608,1776451840109,-115201.09,8.027e-05,2]
[420666609,1776451840118,-299.99,8.092e-05,2]
[420666610,1776451840127,-451.9,8.092e-05,2]
[420666611,1776451840136,-999.99,8.092e-05,2]
[420666612,1776451840145,-24999.99,8.093e-05,2]
[420666613,1776451840154,-1573.18,8.093e-05,2]
[420666614,1776451840163,-150.99,8.093e-05,2]
[420666615,1776451840172,-5988.16,8.093e-05,2]
[420666616,1776451840181,-500.0,8.093e-05,2]
[420666617,1776451840191,-254.24,8.12e-05,2]
[420666618,1776451840200,-500.0,8.153e-05,2]
[420666619,1776451840209,-1500.0,8.16e-05,2]
[420666620,1776451840218,-656.47,8.18e-05,2]
[420666621,1776451840227,-500.0,8.219e-05,2]
[420666622,1776451840236,-500.0,8.219e-05,2]
[420666623,1776451840245,-500.0,8.219e-05,2]
[420666624,1776451840254,-500.0,8.219e-05,2]
[420666625,1776451840263,-500.0,8.219e-05,2]
[420666626,1776451840272,-500.0,8.219e-05,2]
[420666627,1776451840282,-500.0,8.219e-05,2]
[420666628,1776451840291,-484.78986694,8.219e-05,2]
[420666629,1776451840300,-500.0,8.219e-05,2]
[420666630,1776451840310,-150.0,8.219e-05,2]
[420666631,1776451840319,-1199.0,8.219e-05,2]
[420666632,1776451840328,-200.0,8.219e-05,2]
[420666633,1776451840337,-500.0,8.219e-05,2]
[420666634,1776451840346,-917.18,8.219e-05,2]
[420666635,1776451840356,-2934.65,8.225e-05,2]
[420666636,1776451840366,-1852.42,8.239e-05,2]
[420666637,1776451840375,-656.47,8.454e-05,2]
[420666638,1776451840385,-250.0,8.493e-05,2]
[420666639,1776451840395,-1199.0,8.493e-05,2]
[420666640,1776451840406,-63772.58848984,8.539e-05,2]
[420666641,1776451840416,-656.51,8.728e-05,2]
[420666642,1776451840426,-1199.0,8.767e-05,2]
[420666643,1776451840436,-2351.0,8.781e-05,2]
[420666644,1776451840445,-433.0,8.782e-05,2]
[420666645,1776451840454,-587.0,8.782e-05,2]
[420666646,1776451840463,-18769.14493066,8.827e-05,2]
[420666647,1776451840472,-160.0,8.871e-05,2]
[420666648,1776451840482,-1199.0,9.041e-05,2]
[420666649,1776451840492,-368.95770627,9.048e-05,2]
[420666650,1776451840501,-500.0,9.048e-05,2]
[420666651,1776451840511,-151.0,9.097e-05,2]
[420666652,1776451840520,-2764.1646413,9.1e-05,2]
[420666653,1776451840529,-190.18,9.135e-05,2]
[420666654,1776451840539,-166.66,9.278e-05,2]
[420666655,1776451840548,-1199.0,9.315e-05,2]
[420666656,1776451840558,-3000.0,9.534e-05,2]
[420666657,1776451840567,-2100.0,9.534e-05,2]
[420666658,1776451840576,-166.66,9.584e-05,2]
[420666659,1776451840586,-1199.0,9.589e-05,2]
[420666660,1776451840595,-250.0,9.59e-05,2]
[420666661,1776451840605,-3292.0,9.659e-05,2]
[420666662,1776451840614,-736.0,9.66e-05,2]
[420666663,1776451840624,-823.0,9.66e-05,2]
[420666664,1776451840633,-187.78006525,9.762e-05,2]
[420666665,1776451840642,-500.0,9.762e-05,2]
[420666666,1776451840651,-500.0,9.762e-05,2]
[420666667,1776451840660,-500.0,9.762e-05,2]
[420666668,1776451840669,-646.65982734,9.762e-05,2]
[420666669,1776451840678,-500.0,9.762e-05,2]
[420666670,1776451840687,-500.0,9.762e-05,2]
[420666671,1776451840696,-500.0,9.762e-05,2]
[420666672,1776451840705,-500.0,9.762e-05,2]
[420666673,1776451840715,-206.84554072,9.762e-05,2]
[420666674,1776451840724,-745.65223616,9.762e-05,2]
[420666675,1776451840733,-225.18697532,9.762e-05,2]
[420666676,1776451840743,-1280.88388878,9.762e-05,2]
[420666677,1776451840752,-578.20924308,9.762e-05,2]
[420666678,1776451840761,-225.18697532,9.762e-05,2]
[420666679,1776451840771,-162.38071899,9.762e-05,2]
[420666680,1776451840780,-151.0,9.762e-05,2]
[420666681,1776451840788,-799.54513345,9.762e-05,2]
[420666682,1776451840797,-151.0,9.86e-05,2]
[420666683,1776451840807,-1199.0,9.863e-05,2]
[420666684,1776451840816,-166.66,9.89e-05,2]
[420666685,1776451840825,-1348.0,9.969e-05,2]
[420666686,1776451840834,-582.633,9.969e-05,2]
[420666687,1776451840844,-622.0,9.969e-05,2]
[420666688,1776451840853,-1265.0,9.969e-05,2]
[420666689,1776451840862,-416.0,9.969e-05,2]
[420666690,1776451840871,-3778.0,9.969e-05,2]
[420666691,1776451840880,-157.64,9.973e-05,2]
[420666692,1776451840890,-1310.25175263,9.98e-05,2]
[420666693,1776451840899,-173.25322076,0.0001,2]
[420666694,1776451840907,-200.0,0.0001,2]
[420666695,1776451840918,-500.0,0.0001,2]
[420666696,1776451840929,-500.0,0.0001,2]
[420666697,1776451840938,-500.0,0.0001,2]
[420666698,1776451840947,-500.0,0.0001,2]
[420666699,1776451840956,-500.0,0.0001,2]
[420666700,1776451840965,-500.0,0.0001,2]
[420666701,1776451840974,-500.0,0.0001,2]
[420666702,1776451840983,-500.0,0.0001,2]
[420666703,1776451840993,-500.0,0.0001,2]
[420666704,1776451841002,-500.0,0.0001,2]
[420666705,1776451841011,-1386.78395259,0.0001,2]
[420666706,1776451841021,-500.0,0.0001,2]
[420666707,1776451841030,-500.0,0.0001,2]
[420666708,1776451841039,-500.0,0.0001,2]
[420666709,1776451841048,-500.0,0.0001,2]
[420666710,1776451841058,-500.0,0.0001,2]
[420666711,1776451841068,-500.0,0.0001,2]
[420666712,1776451841078,-500.0,0.0001,2]
[420666713,1776451841089,-151.0,0.0001,2]
[420666714,1776451841099,-500.0,0.0001,2]
[420666715,1776451841110,-151.0,0.0001,2]
[420666716,1776451841119,-500.0,0.0001,2]
[420666717,1776451841128,-151.0,0.0001,2]
[420666718,1776451841137,-500.0,0.0001,2]
[420666719,1776451841146,-151.0,0.0001,2]
[420666720,1776451841154,-500.0,0.0001,2]
[420666721,1776451841163,-151.0,0.0001,2]
[420666722,1776451841172,-500.0,0.0001,2]
[420666723,1776451841182,-151.0,0.0001,2]
[420666724,1776451841191,-151.0,0.0001,2]
[420666725,1776451841201,-151.0,0.0001,2]
[420666726,1776451841210,-151.0,0.0001,2]
[420666727,1776451841219,-151.0,0.0001,2]
[420666728,1776451841228,-151.0,0.0001,2]
[420666729,1776451841238,-151.0,0.0001,2]
[420666730,1776451841247,-151.0,0.0001,2]
[420666731,1776451841256,-151.0,0.0001,2]
[420666732,1776451841266,-151.0,0.0001,2]
[420666733,1776451841275,-151.0,0.0001,2]
[420666734,1776451841285,-151.0,0.0001,2]
[420666735,1776451841294,-151.0,0.0001,2]
[420666736,1776451841303,-151.0,0.0001,2]
[420666737,1776451841312,-151.0,0.0001,2]
[420666738,1776451841322,-151.0,0.0001,2]
[420666739,1776451841331,-151.0,0.0001,2]
[420666740,1776451841340,-151.0,0.0001,2]
[420666741,1776451841349,-151.0,0.0001,2]
[420666742,1776451841359,-151.0,0.0001,2]
[420666743,1776451841368,-151.0,0.0001,2]
[420666744,1776451841377,-151.0,0.0001,2]
[420666745,1776451841387,-151.0,0.0001,2]
[420666746,1776451841396,-151.0,0.0001,2]
[420666747,1776451841405,-151.0,0.0001,2]
[420666748,1776451841415,-151.0,0.0001,2]
[420666749,1776451841424,-151.0,0.0001,2]
[420666750,1776451841434,-151.0,0.0001,2]
[420666751,1776451841443,-151.0,0.0001,2]
[420666752,1776451841452,-151.0,0.0001,2]
[420666753,1776451841462,-160.95570324,0.0001,2]
[420666754,1776451841472,-207.45,0.000101,2]
[420666755,1776451841481,-810.59,0.000101,2]
[420666756,1776451841491,-202.64,0.000101,2]
[420666757,1776451841500,-202.64,0.000101,2]
[420666758,1776451841512,-202.64,0.000101,2]
[420666759,1776451841521,-202.68,0.000101,2]
[420666760,1776451841531,-150.0,0.00010124,2]
[420666761,1776451841541,-1199.0,0.00010137,2]
[420666762,1776451841551,-166.66,0.00010196,2]
[420666763,1776451841560,-351.13552985,0.0001031,2]
[420666764,1776451841570,-204.21608912,0.00010356,2]
[420666765,1776451841579,-1199.0,0.00010411,2]
[420666766,1776451841588,-150.0,0.00010424,2]
[420666767,1776451841597,-166.66,0.00010503,2]
[420666768,1776451841607,-200.0,0.00010548,2]
[420666769,1776451841616,-3013.2652,0.00010585,2]
[420666770,1776451841626,-2831.0,0.00010625,2]
[420666771,1776451841635,-1252.0,0.00010626,2]
[420666772,1776451841644,-1152.0,0.00010626,2]
[420666773,1776451841653,-323.13581729,0.00010673,2]
[420666774,1776451841662,-1199.0,0.00010685,2]
[420666775,1776451841671,-407.406466,0.00010686,2]
[420666776,1776451841680,-150.0,0.00010724,2]
[420666777,1776451841690,-293.799205,0.00010731,2]
[420666778,1776451841699,-150.0,0.00010751,2]
[420666779,1776451841708,-150.0,0.00010751,2]
[420666780,1776451841717,-150.0,0.00010751,2]
[420666781,1776451841726,-150.0,0.00010751,2]
[420666782,1776451841735,-150.0,0.00010751,2]
[420666783,1776451841745,-150.0,0.00010751,2]
[420666784,1776451841754,-150.0,0.00010751,2]
[420666785,1776451841764,-150.0,0.00010751,2]
[420666786,1776451841772,-150.0,0.00010751,2]
[420666787,1776451841782,-150.0,0.00010751,2]
[420666788,1776451841791,-150.0,0.00010751,2]
[420666789,1776451841800,-150.0,0.00010751,2]
[420666790,1776451841811,-313.0,0.000108,2]
[420666791,1776451841821,-307.0,0.000108,2]
[420666792,1776451841830,-1000.0,0.000108,2]
[420666793,1776451841839,-150.0,0.00010808,2]
[420666794,1776451841848,-607.0,0.00010809,5]
[420666795,1776451841859,-166.66,0.00010809,2]
[420666796,1776451841868,-150.0,0.00010825,2]
[420666797,1776451841878,-150.0,0.0001083,2]
[420666798,1776451841889,-150.0,0.0001083,2]
[420666799,1776451841900,-152.0,0.0001084,3]
[420666800,1776451841910,-150.0,0.00010843,2]
[420666801,1776451841920,-150.0,0.0001085,2]
[420666802,1776451841929,-150.0,0.00010864,2]
[420666803,1776451841938,-1661.06566096,0.00010873,2]
[420666804,1776451841947,-500.0,0.000109,3]
[420666805,1776451841956,-2139.06628203,0.000109,2]
[420666806,1776451841966,-2139.06628203,0.000109,2]
[420666807,1776451841974,-2139.06628203,0.000109,2]
[420666808,1776451841984,-2139.06628203,0.000109,2]
[420666809,1776451841997,-2139.06628203,0.000109,2]
[420666810,1776451842012,-2139.06628203,0.000109,2]
[420666811,1776451842028,-150.0,0.000109,2]
[420666812,1776451842037,-3000.0,0.00010904,2]
[420666813,1776451842046,-2100.0,0.00010904,2]
[420666814,1776451842055,-150.0,0.0001091,2]
[420666815,1776451842064,-150.0,0.0001091,2]
[420666816,1776451842074,-1163.11752,0.00010915,2]
[420666817,1776451842083,-150.0,0.00010921,2]
[420666818,1776451842092,-150.0,0.00010934,2]
[420666819,1776451842101,-150.0,0.0001095,2]
[420666820,1776451842111,-150.0,0.0001095,2]
[420666821,1776451842122,-500.0,0.00010959,2]
[420666822,1776451842132,-3388.0,0.00010959,2]
[420666823,1776451842142,-3388.0,0.00010959,2]
[420666824,1776451842150,-1206.80344703,0.00010959,2]
[420666825,1776451842160,-1199.0,0.00010959,2]
[420666826,1776451842169,-150.0,0.00010975,2]
[420666827,1776451842178,-150.0,0.00010978,2]
[420666828,1776451842188,-150.0,0.00010979,2]
[420666829,1776451842197,-150.0,0.0001099,2]
[420666830,1776451842206,-150.0,0.0001099,2]
[420666831,1776451842215,-150.0,0.0001099,2]
[420666832,1776451842224,-150.0,0.00011024,2]
[420666833,1776451842234,-150.0,0.00011026,2]
[420666834,1776451842244,-150.0,0.00011035,2]
[420666835,1776451842254,-150.0,0.00011049,2]
[420666836,1776451842263,-150.0,0.00011049,2]
[420666837,1776451842272,-150.0,0.00011069,2]
[420666838,1776451842282,-150.0,0.00011069,2]
[420666839,1776451842296,-150.0,0.00011092,2]
[420666840,1776451842305,-219.107056,0.00011096,2]
[420666841,1776451842314,-200.0,0.00011096,2]
[420666842,1776451842323,-14272.05120484,0.00011099,2]
[420666843,1776451842333,-14272.05120482,0.00011099,2]
[420666845,1776451842342,-14272.05120482,0.00011099,2]
[420666846,1776451842351,-14272.05120482,0.00011099,2]
[420666848,1776451842361,-14272.05120482,0.00011099,2]
[420666849,1776451842371,-14272.05120482,0.00011099,2]
[420666850,1776451842380,-14272.05120482,0.00011099,2]
[420666851,1776451842389,-12853.22743122,0.00011099,2]
[420666852,1776451842415,-1418.8237736,0.00011099,2]
[420666854,1776451842425,-3492.55411067,0.00011099,2]
[420666863,1776451843760,-836.2163954,0.00011099,2]
[420666864,1776451843773,-575.37887816,0.00011099,2]
[420666865,1776451844067,-27729.95843829,0.00011099,2]
[420666866,1776451844079,-32634.10782244,0.00011099,2]
[420666867,1776451844091,-32634.10782244,0.00011099,2]
[420666868,1776451844103,-32634.10782244,0.00011099,2]
[420666869,1776451844114,-32634.10782244,0.00011099,2]
[420666870,1776451844126,-1494.62058597,0.00011099,2]
[420666871,1776451844145,-774.6985844,0.00011099,2]
[420666872,1776451844161,-17248.53915426,0.00011099,2]
[420666873,1776451844176,-13116.24949781,0.00011099,2]
[420666874,1776451844188,-18877.15360143,0.00011099,2]
[420666875,1776451844203,-2987.2,0.00011099,2]
[420666876,1776451844216,-2095.592,0.00011099,2]
[420666877,1776451844231,-1603.7496992,0.00011099,2]
[420666878,1776451844649,-2473.0,9.969e-05,2]
[420666879,1776451844660,-7070.41252181,0.00011099,2]
[420666880,1776451844673,-32634.10782244,0.00011099,2]
[420666881,1776451844685,-700.0,0.000111,4]
[420666882,1776451844696,-150.0,0.00011118,2]
[420666883,1776451844708,-150.0,0.00011124,2]
[420666884,1776451844720,-150.0,0.00011149,2]
[420666885,1776451844731,-150.0,0.00011149,2]
[420666886,1776451844743,-150.0,0.00011149,2]
[420666887,1776451844754,-150.0,0.00011149,2]
[420666888,1776451844766,-150.0,0.00011149,2]
[420666889,1776451844779,-150.0,0.00011149,2]
[420666890,1776451844790,-150.0,0.00011199,2]
[420666891,1776451844801,-1000.0,0.000112,4]
[420666892,1776451844813,-150.0,0.00011206,2]
[420666893,1776451844824,-150.0,0.0001121,2]
[420666894,1776451844835,-150.0,0.00011228,2]
[420666895,1776451844847,-150.0,0.00011228,2]
[420666896,1776451844859,-150.0,0.00011228,2]
[420666897,1776451844870,-2139.06628203,0.00011231,2]
[420666898,1776451844882,-449.45,0.00011233,2]
[420666899,1776451844894,-150.0,0.00011248,2]
[420666900,1776451844905,-150.0,0.00011263,2]
[420666901,1776451844916,-150.0,0.00011273,2]
[420666902,1776451844928,-1300.0,0.000113,4]
[420666903,1776451844939,-150.0,0.00011302,2]
[420666904,1776451844951,-150.0,0.00011308,2]